bitfinex/quotes_BTCUSD_20251024
["timestamp","ask_amount","ask_price","bid_price","bid_amount"]
[1761337975224,1.28524488,110840.0,110830.0,0.18045655]
[1761337976355,1.28524488,110840.0,110820.0,0.20765089]
[1761337976356,0.18045655,110830.0,110820.0,0.20765089]
[1761337976561,0.5583327,110830.0,110820.0,0.20765089]
[1761337980385,0.5583327,110830.0,110820.0,0.23194813]
[1761337982210,0.37787615,110830.0,110820.0,0.23194813]
[1761337983200,0.5583327,110830.0,110820.0,0.23194813]
[1761337983381,0.93620885,110830.0,110820.0,0.05149015]
[1761337983610,0.93620885,110830.0,110820.0,8.808e-05]
[1761337983611,3.93620885,110830.0,110820.0,8.808e-05]
[1761337983818,3.93620885,110830.0,110820.0,0.18056091]
[1761337984250,3.93620885,110830.0,110820.0,8.808e-05]
[1761337984464,3.93620885,110830.0,110820.0,0.18056091]
[1761337985559,3.93620885,110830.0,110820.0,8.808e-05]
[1761337985770,3.93620885,110830.0,110820.0,0.18056091]
[1761337986188,3.93620885,110830.0,110820.0,0.20485815]
[1761337986189,3.37787615,110830.0,110820.0,0.20485815]
[1761337986404,3.5583327,110830.0,110820.0,0.20485815]
[1761337988789,3.5580497,110830.0,110820.0,0.20485815]
[1761337993832,3.5580497,110830.0,110820.0,0.02438532]
[1761337994022,3.5580497,110830.0,110820.0,0.20485815]
[1761337994453,3.5580497,110830.0,110820.0,0.02438532]
[1761337994671,3.5580497,110830.0,110820.0,0.20485815]
[1761338001367,3.37759315,110830.0,110820.0,0.20485815]
[1761338001556,3.5580497,110830.0,110820.0,0.20485815]
[1761338002889,3.0,110830.0,110820.0,0.20485815]
[1761338003103,3.5580497,110830.0,110820.0,0.20485815]
[1761338004419,3.37759315,110830.0,110820.0,0.20485815]
[1761338004841,3.5580497,110830.0,110820.0,0.20485815]
[1761338006030,3.0,110830.0,110820.0,0.20485815]
[1761338006482,3.37759315,110830.0,110820.0,0.20485815]
[1761338006717,0.37759315,110830.0,110820.0,0.20485815]
[1761338007348,0.37759315,110830.0,110820.0,0.20585815]
[1761338007753,0.37759315,110830.0,110820.0,0.20885815]
[1761338015065,0.5580497,110830.0,110820.0,0.20885815]
[1761338021260,0.5580497,110830.0,110820.0,0.20891909]
[1761338040527,3.5580497,110830.0,110820.0,0.02844662]
[1761338040730,3.5580497,110830.0,110820.0,0.00408808]
[1761338041390,3.5580497,110830.0,110820.0,0.00308808]
[1761338041589,4.5236361,110830.0,110820.0,8.808e-05]
[1761338041845,4.43381709,110830.0,110820.0,8.808e-05]
[1761338042014,4.43381709,110830.0,110820.0,0.00108808]
[1761338043208,4.43381709,110830.0,110820.0,8.808e-05]
[1761338044082,4.42884846,110830.0,110820.0,8.808e-05]
[1761338048765,4.80693037,110830.0,110820.0,8.808e-05]
[1761338049108,4.4291743,110830.0,110820.0,8.808e-05]
[1761338056528,4.36081907,110830.0,110820.0,8.808e-05]
[1761338058246,4.27100006,110830.0,110820.0,8.808e-05]
[1761338066360,3.89324399,110830.0,110820.0,8.808e-05]
[1761338066606,0.89821262,110830.0,110820.0,0.18056091]
[1761338067995,0.89821262,110830.0,110820.0,0.18156091]
[1761338068224,1.27596869,110830.0,110820.0,0.00108808]
[1761338069339,1.27596869,110830.0,110820.0,0.00208808]
[1761338069966,1.27596869,110830.0,110820.0,0.18256091]
[1761338070144,0.89821262,110830.0,110820.0,0.18256091]
[1761338073679,0.89821262,110830.0,110820.0,0.00208808]
[1761338073829,0.89821262,110830.0,110820.0,0.18256091]
[1761338074267,0.89821262,110830.0,110820.0,0.00208808]
[1761338075331,0.89821262,110830.0,110820.0,0.18256091]
[1761338079023,1.27596869,110830.0,110820.0,0.00208808]
[1761338079463,4.3657877,110830.0,110820.0,0.00208808]
[1761338079892,4.39289684,110830.0,110820.0,0.00208808]
[1761338080526,4.39289684,110830.0,110820.0,0.00108808]
[1761338080954,4.39289684,110830.0,110820.0,8.808e-05]
[1761338087890,4.39282912,110830.0,110820.0,8.808e-05]
[1761338096346,4.01507305,110830.0,110820.0,8.808e-05]
[1761338097185,3.92525404,110830.0,110820.0,8.808e-05]
[1761338099036,3.54749797,110830.0,110820.0,0.18056091]
[1761338099252,3.8981449,110830.0,110820.0,0.18056091]
[1761338100755,3.8981449,110830.0,110820.0,0.18156091]
[1761338102238,0.8981449,110830.0,110820.0,0.18256091]
[1761338105169,0.20755265,110840.0,110830.0,0.18045655]
[1761338105375,0.93595695,110840.0,110820.0,0.18256091]
[1761338105646,0.37775607,110830.0,110820.0,0.18256091]
[1761338105908,0.55821262,110830.0,110820.0,0.18256091]
[1761338106088,0.55821262,110830.0,110820.0,0.18056091]
[1761338106745,0.55821262,110830.0,110820.0,0.20766719]
[1761338106975,0.55821262,110830.0,110820.0,0.20866719]
[1761338108077,0.55821262,110830.0,110820.0,0.20966719]
[1761338108816,0.55802439,110830.0,110820.0,0.20966719]
[1761338109041,0.37756784,110830.0,110820.0,0.20966719]
[1761338112434,0.71756784,110840.0,110830.0,0.180447]
[1761338112647,0.34,110840.0,110830.0,0.180447]
[1761338113083,0.71756784,110840.0,110830.0,0.180447]
[1761338113311,0.71756784,110840.0,110830.0,0.20755098]
[1761338114002,0.71756784,110840.0,110830.0,0.20855098]
[1761338114200,0.89800811,110840.0,110830.0,0.20855098]
[1761338114837,0.89800811,110840.0,110830.0,0.20955098]
[1761338115928,0.57612551,110850.0,110840.0,0.18044027]
[1761338116179,3.91612551,110850.0,110840.0,0.18044027]
[1761338116818,3.91612551,110850.0,110830.0,0.20855098]
[1761338117051,0.37756784,110840.0,110830.0,0.20855098]
[1761338118123,3.91612551,110850.0,110840.0,0.18044027]
[1761338119643,3.0,110840.0,110830.0,0.20855098]
[1761338119856,3.37756784,110840.0,110830.0,0.20755098]
[1761338120077,0.37756784,110840.0,110830.0,0.20755098]
[1761338121146,0.37756784,110840.0,110830.0,0.20855098]
[1761338121788,0.37756784,110840.0,110830.0,0.20955098]
[1761338135554,0.91612551,110850.0,110840.0,0.18044027]
[1761338135768,3.91612551,110850.0,110840.0,0.18044027]
[1761338136319,3.91612551,110850.0,110840.0,0.20754376]
[1761338143535,3.91612551,110850.0,110840.0,0.20954376]
[1761338147961,3.91612551,110850.0,110840.0,0.02910349]
[1761338150459,3.91612551,110850.0,110840.0,0.20954376]
[1761338150671,3.91612551,110850.0,110840.0,0.02910349]
[1761338151171,3.89801657,110850.0,110840.0,0.02910349]
[1761338152132,3.90703776,110850.0,110840.0,0.02910349]
[1761338153417,3.9161471,110850.0,110840.0,0.02910349]
[1761338153611,3.53857926,110850.0,110840.0,0.20954376]
[1761338153840,3.9161471,110850.0,110840.0,0.20954376]
[1761338155060,3.9161471,110850.0,110840.0,0.02910349]
[1761338161236,3.5761471,110850.0,110840.0,0.02910349]
[1761338164267,3.5761471,110850.0,110840.0,0.20954376]
[1761338169525,3.9161471,110850.0,110840.0,0.02910349]
[1761338170853,3.91605926,110850.0,110840.0,0.02910349]
[1761338171070,3.90701333,110850.0,110840.0,0.20954376]
[1761338172179,3.37748,110850.0,110840.0,0.20954376]
[1761338172409,3.0,110850.0,110840.0,0.23385135]
[1761338172616,0.37748,110850.0,110840.0,0.23385135]
[1761338173006,0.37748,110850.0,110840.0,0.26621405]
[1761338173202,0.37748,110850.0,110840.0,0.23385135]
[1761338177046,3.89779502,110860.0,110850.0,0.18042399]
[1761338177710,3.89779502,110860.0,110850.0,0.20752427]
[1761338178125,4.27518141,110860.0,110850.0,0.20752427]
[1761338180528,4.2751805,110860.0,110850.0,0.20752427]
[1761338186616,3.52040772,110860.0,110850.0,0.20752427]
[1761338186818,3.89779411,110860.0,110850.0,0.20752427]
[1761338187379,3.71738639,110860.0,110850.0,0.20752427]
[1761338188261,3.71738639,110860.0,110850.0,0.20852427]
[1761338188503,3.89779411,110860.0,110850.0,0.20952427]
[1761338189949,3.71738639,110860.0,110850.0,0.20952427]
[1761338190913,3.89779411,110860.0,110850.0,0.20952427]
[1761338191850,3.71738639,110860.0,110850.0,0.20952427]
[1761338192479,3.89779411,110860.0,110850.0,0.20952427]
[1761338193867,3.71738639,110860.0,110850.0,0.20952427]
[1761338194286,3.89779411,110860.0,110850.0,0.20952427]
[1761338194506,3.71738639,110860.0,110850.0,0.20952427]
[1761338195232,3.89779411,110860.0,110850.0,0.20952427]
[1761338195980,3.71738639,110860.0,110850.0,0.20952427]
[1761338197451,3.89779411,110860.0,110850.0,0.20952427]
[1761338203578,3.71738639,110860.0,110850.0,0.20952427]
[1761338203766,3.89779411,110860.0,110850.0,0.20952427]
[1761338205820,3.52924475,110870.0,110860.0,0.18040772]
[1761338205982,3.34885331,110870.0,110860.0,0.18040772]
[1761338206586,3.52924475,110870.0,110860.0,0.20750543]
[1761338206936,3.90663114,110870.0,110860.0,0.20750543]
[1761338207147,3.90663114,110870.0,110860.0,0.20759351]
[1761338207767,3.7262397,110870.0,110860.0,0.20759351]
[1761338208914,3.7262397,110870.0,110860.0,0.20859351]
[1761338209313,3.7262397,110870.0,110860.0,0.20959351]
[1761338209521,3.34885331,110870.0,110860.0,0.20959351]
[1761338209744,3.7262397,110870.0,110860.0,0.20959351]
[1761338210595,3.90663114,110870.0,110860.0,0.20959351]
[1761338211400,3.7262397,110870.0,110860.0,0.20959351]
[1761338211614,3.90663114,110870.0,110860.0,0.20959351]
[1761338214168,3.90663114,110870.0,110860.0,0.02918579]
[1761338214343,4.28401753,110870.0,110860.0,0.02918579]
[1761338214497,4.28401753,110870.0,110860.0,0.20959351]
[1761338216140,4.28401753,110870.0,110860.0,0.02918579]
[1761338216572,4.28401753,110870.0,110860.0,0.20959351]
[1761338216998,4.28401753,110870.0,110860.0,0.02918579]
[1761338217654,4.37383654,110870.0,110860.0,0.00208808]
[1761338218430,4.37383654,110870.0,110860.0,0.00108808]
[1761338218635,4.37383654,110870.0,110860.0,8.808e-05]
[1761338232720,3.99649464,110870.0,110860.0,8.808e-05]
[1761338244551,3.90667563,110870.0,110860.0,8.808e-05]
[1761338259586,3.90667563,110870.0,110860.0,0.1804958]
[1761338259808,3.90667563,110870.0,110860.0,8.808e-05]
[1761338269408,3.52924475,110870.0,110860.0,8.808e-05]
[1761338269607,3.90667563,110870.0,110860.0,8.808e-05]
[1761338275069,3.52924475,110870.0,110860.0,8.808e-05]
[1761338275248,3.90667563,110870.0,110860.0,8.808e-05]
[1761338275444,3.55782232,110870.0,110860.0,8.808e-05]
[1761338277673,3.5872077,110870.0,110860.0,8.808e-05]
[1761338282799,3.9272077,110870.0,110860.0,8.808e-05]
[1761338283605,3.9272077,110870.0,110860.0,0.1804958]
[1761338283865,3.54977682,110870.0,110860.0,0.1804958]
[1761338284472,3.54977682,110870.0,110860.0,8.808e-05]
[1761338284850,3.54977682,110870.0,110860.0,0.02718662]
[1761338285070,3.9272077,110870.0,110860.0,0.02718662]
[1761338285810,4.01702671,110870.0,110860.0,8.808e-05]
[1761338286290,4.05832738,110870.0,110860.0,8.808e-05]
[1761338286729,4.50442426,110870.0,110860.0,8.808e-05]
[1761338286952,4.53152888,110870.0,110860.0,8.808e-05]
[1761338287186,3.82520299,110870.0,110860.0,8.808e-05]
[1761338287385,4.58006475,110870.0,110860.0,8.808e-05]
[1761338288246,4.53152888,110870.0,110860.0,8.808e-05]
[1761338288470,4.154098,110870.0,110860.0,8.808e-05]
[1761338289635,3.77666712,110870.0,110860.0,8.808e-05]
[1761338289840,4.154098,110870.0,110860.0,8.808e-05]
[1761338292801,4.53170054,110870.0,110860.0,8.808e-05]
[1761338293006,4.49921682,110870.0,110860.0,8.808e-05]
[1761338300406,4.87673353,110870.0,110860.0,8.808e-05]
[1761338305715,0.18048174,110820.0,110800.0,0.21383747]
[1761338305933,3.55800583,110810.0,110800.0,0.24109733]
[1761338306154,3.55800583,110810.0,110800.0,0.21678974]
[1761338307512,3.55800583,110810.0,110800.0,0.21778974]
[1761338307724,3.55800583,110810.0,110800.0,0.22178974]
[1761338312069,3.59484565,110810.0,110800.0,0.22178974]
[1761338312471,3.59484565,110810.0,110800.0,0.00514871]
[1761338313522,3.59484565,110810.0,110800.0,0.00414871]
[1761338313943,3.59484565,110810.0,110800.0,0.00514871]
[1761338314154,3.59484565,110810.0,110800.0,0.00114871]
[1761338314356,3.59484565,110810.0,110800.0,0.00514871]
[1761338317969,4.02466466,110810.0,110800.0,0.00514871]
[1761338322220,4.49200038,110810.0,110800.0,0.00514871]
[1761338322678,4.11448367,110810.0,110800.0,0.00514871]
[1761338322885,4.11448367,110810.0,110800.0,0.00414871]
[1761338323102,4.49200038,110810.0,110800.0,0.00014871]
[1761338323440,4.49200038,110810.0,110800.0,0.00214871]
[1761338323648,4.11448367,110810.0,110800.0,0.00214871]
[1761338325716,4.49200038,110810.0,110800.0,0.00214871]
[1761338326759,4.49200038,110810.0,110800.0,0.00014871]
[1761338336266,4.40218137,110810.0,110800.0,0.00014871]
[1761338339413,4.21367704,110810.0,110800.0,0.00014871]
[1761338340824,3.45864362,110810.0,110800.0,0.00014871]
[1761338341028,4.21367704,110810.0,110800.0,0.00014871]
[1761338341482,4.62737603,110810.0,110800.0,0.00014871]
[1761338341638,4.71719504,110810.0,110800.0,0.00014871]
[1761338341839,4.74431646,110810.0,110800.0,0.00014871]
[1761338343057,3.33203367,110780.0,110770.0,0.0004]
[1761338343257,4.1768861,110780.0,110770.0,0.00089067]
[1761338343681,4.1768861,110780.0,110770.0,0.18144497]
[1761338343913,3.15149567,110780.0,110770.0,0.18144497]
[1761338344130,3.15149567,110780.0,110770.0,0.18344497]
[1761338344355,3.52901238,110780.0,110770.0,0.18344497]
[1761338344564,3.15149567,110780.0,110770.0,0.18344497]
[1761338345494,3.15149567,110780.0,110770.0,0.18144497]
[1761338345694,3.15149567,110780.0,110770.0,0.18544497]
[1761338345898,3.15149567,110780.0,110770.0,0.18144497]
[1761338346310,3.15149567,110780.0,110770.0,0.18744497]
[1761338346722,3.15149567,110780.0,110770.0,0.18644497]
[1761338346928,3.15149567,110780.0,110770.0,0.21356509]
[1761338347131,3.15149567,110780.0,110770.0,0.21456509]
[1761338354310,3.52901238,110780.0,110770.0,0.21456509]
[1761338354735,3.15149567,110780.0,110770.0,0.21456509]
[1761338360418,0.46723147,110810.0,110790.0,0.18050786]
[1761338360662,3.0,110800.0,110790.0,0.18050786]
[1761338361345,3.0,110800.0,110790.0,0.20762306]
[1761338361785,3.0,110800.0,110790.0,0.20962306]
[1761338362609,3.0,110800.0,110790.0,0.20762306]
[1761338362794,3.0,110800.0,110790.0,0.20962306]
[1761338363993,3.0,110800.0,110790.0,0.20762306]
[1761338364203,3.0,110800.0,110790.0,0.20962306]
[1761338364428,3.0,110800.0,110790.0,0.20762306]
[1761338364854,3.0,110800.0,110790.0,0.21362306]
[1761338367909,3.0,110800.0,110790.0,0.21362306]
[1761338390224,3.0,110800.0,110790.0,0.61581978]
[1761338390431,3.0,110800.0,110790.0,0.23795202]
[1761338391693,3.0,110800.0,110790.0,0.61581978]
[1761338392535,0.5899,110810.0,110800.0,0.18050541]
[1761338392742,0.34,110810.0,110800.0,0.18050541]
[1761338392945,0.34,110810.0,110800.0,0.20483437]
[1761338393152,0.22604816,110820.0,110810.0,0.18048912]
[1761338393364,3.21701561,110820.0,110810.0,0.18048912]
[1761338393605,3.37654278,110820.0,110810.0,0.18048912]
[1761338393779,3.37654278,110820.0,110810.0,0.20760042]
[1761338394198,3.34,110820.0,110810.0,0.20760042]
[1761338394401,3.34,110820.0,110810.0,0.20809109]
[1761338394603,3.34,110820.0,110810.0,0.21009109]
[1761338394604,3.52047283,110820.0,110810.0,0.21009109]
[1761338395670,3.34,110820.0,110810.0,0.21009109]
[1761338396105,3.34,110820.0,110810.0,0.20909109]
[1761338396729,3.34,110820.0,110810.0,0.21109109]
[1761338396936,3.34,110830.0,110820.0,0.18047283]
[1761338397141,3.37712981,110830.0,110820.0,0.18047283]
[1761338397558,3.34,110830.0,110820.0,0.18047283]
[1761338397775,3.34,110830.0,110820.0,0.20757935]
[1761338398654,3.52045655,110830.0,110820.0,0.20757935]
[1761338399109,3.52045655,110830.0,110820.0,0.20957935]
[1761338399523,3.34,110830.0,110820.0,0.20957935]
[1761338399956,3.52045655,110830.0,110820.0,0.20957935]
[1761338400175,3.34,110830.0,110820.0,0.20957935]
[1761338400920,3.52045655,110830.0,110820.0,0.20957935]
[1761338401711,3.89832431,110830.0,110820.0,0.20957935]
[1761338406529,3.89832431,110830.0,110820.0,0.18247283]
[1761338414987,3.89832431,110830.0,110820.0,0.002]
[1761338416754,4.27572533,110830.0,110820.0,0.002]
[1761338423162,4.27570905,110840.0,110830.0,0.18445655]
[1761338423306,4.27570905,110840.0,110830.0,0.18545655]
[1761338424313,4.31318387,110840.0,110830.0,0.18545655]
[1761338424746,4.27570905,110840.0,110830.0,0.18545655]
[1761338424956,4.31293179,110840.0,110830.0,0.18545655]
[1761338425282,4.27570905,110840.0,110830.0,0.18545655]
[1761338434605,4.08400961,110840.0,110830.0,0.18545655]
[1761338434788,4.27570905,110840.0,110830.0,0.18545655]
[1761338436224,3.89807466,110840.0,110830.0,0.18545655]
[1761338437159,4.09526878,110840.0,110830.0,0.18545655]
[1761338437838,4.27570905,110840.0,110830.0,0.18545655]
[1761338438067,3.0,110840.0,110830.0,0.18545655]
[1761338438261,3.89805838,110850.0,110840.0,0.18042906]
[1761338438986,3.92854209,110850.0,110840.0,0.18042906]
[1761338439393,3.89805838,110850.0,110840.0,0.18042906]
[1761338440482,3.89805838,110850.0,110840.0,0.18142906]
[1761338446069,3.34,110850.0,110840.0,0.18142906]
[1761338446283,0.71763439,110850.0,110840.0,0.18142906]
[1761338451877,0.89805838,110850.0,110840.0,0.18142906]
[1761338452079,0.89705838,110850.0,110840.0,0.18142906]
[1761338452673,0.71663439,110850.0,110840.0,0.18142906]
[1761338454211,0.89705838,110850.0,110840.0,0.18142906]
[1761338456097,0.71663439,110850.0,110840.0,0.18142906]
[1761338461482,3.89705838,110850.0,110840.0,0.33966906]
[1761338461906,3.71663439,110850.0,110840.0,0.33966906]
[1761338462580,3.339,110850.0,110840.0,0.18142906]
[1761338462771,0.71663439,110850.0,110840.0,0.18142906]
[1761338464830,0.37763439,110860.0,110850.0,0.18042399]
[1761338465043,4.09526878,110860.0,110850.0,0.18042399]
[1761338465261,4.2756765,110860.0,110850.0,0.18042399]
[1761338466275,4.2756765,110860.0,110850.0,0.18351207]
[1761338467625,4.2756765,110860.0,110850.0,0.18451207]
[1761338471668,3.52040772,110860.0,110850.0,0.18451207]
[1761338471877,4.2756765,110860.0,110850.0,0.18451207]
[1761338478779,3.89778243,110860.0,110850.0,0.18451207]
[1761338492239,3.924883,110860.0,110850.0,0.18451207]
[1761338501577,3.924883,110860.0,110850.0,0.00408808]
[1761338501781,3.924883,110860.0,110850.0,0.18451207]
[1761338503940,3.74283616,110860.0,110850.0,0.18451207]
[1761338504155,3.924883,110860.0,110850.0,0.18451207]
[1761338511963,3.54750829,110860.0,110850.0,0.18451207]
[1761338512176,0.34,110870.0,110860.0,0.18040772]
[1761338512388,3.54748927,110870.0,110860.0,0.18040772]
[1761338512597,3.36709783,110870.0,110860.0,0.18040772]
[1761338514133,0.34,110870.0,110860.0,0.18040772]
[1761338515211,0.02709624,110880.0,110870.0,0.18039144]
[1761338515427,3.02709624,110880.0,110870.0,0.18039144]
[1761338515645,3.0,110880.0,110870.0,0.18039144]
[1761338516096,3.0,110880.0,110870.0,0.33863144]
[1761338516754,3.0,110880.0,110870.0,0.34163144]
[1761338521750,3.18037518,110880.0,110870.0,0.18339144]
[1761338521965,3.55774989,110880.0,110870.0,0.003]
[1761338522168,3.55774989,110880.0,110870.0,0.18339144]
[1761338522365,3.58484466,110880.0,110870.0,0.18339144]
[1761338525698,0.02709477,110880.0,110870.0,0.18339144]
[1761338526975,3.0,110880.0,110870.0,0.18339144]
[1761338542463,0.37718661,110880.0,110870.0,0.18339144]
[1761338544118,3.40522019,110890.0,110880.0,0.18037518]
[1761338544932,3.5855791,110890.0,110880.0,0.18037518]
[1761338546578,3.20839249,110890.0,110880.0,0.18037518]
[1761338546993,3.55848555,110890.0,110880.0,0.18037518]
[1761338547623,3.37812664,110890.0,110880.0,0.18037518]
[1761338548070,3.00094003,110890.0,110880.0,0.18037518]
[1761338548271,3.37812664,110890.0,110880.0,0.18037518]
[1761338548892,3.00094003,110890.0,110880.0,0.18037518]
[1761338550042,3.00094003,110890.0,110880.0,0.33857518]
[1761338550457,3.18129894,110890.0,110880.0,0.33857518]
[1761338550655,3.00094003,110890.0,110880.0,0.33857518]
[1761338553284,3.55848555,110890.0,110880.0,0.33857518]
[1761338555280,3.55848555,110890.0,110880.0,0.18037518]
[1761338556711,3.37812664,110890.0,110880.0,0.18037518]
[1761338560981,3.37812664,110890.0,110880.0,0.18075425]
[1761338561798,3.00094003,110890.0,110880.0,0.20506852]
[1761338562002,3.37812664,110890.0,110880.0,0.20506852]
[1761338565743,3.00094003,110890.0,110880.0,0.20506852]
[1761338570991,3.37812664,110890.0,110880.0,0.20506852]
[1761338572850,3.00094003,110890.0,110880.0,0.20506852]
[1761338573055,3.37812664,110890.0,110880.0,0.20506852]
[1761338579928,3.37812664,110890.0,110880.0,0.36322852]
[1761338581348,3.37812664,110890.0,110880.0,0.20506852]
[1761338581564,3.37812664,110890.0,110880.0,0.36322852]
[1761338581795,3.37812664,110890.0,110880.0,0.20506852]
[1761338581999,3.37812664,110890.0,110880.0,0.36322852]
[1761338582865,3.55848555,110890.0,110880.0,0.36322852]
[1761338584156,3.37812664,110890.0,110880.0,0.36322852]
[1761338590109,3.00094003,110890.0,110880.0,0.36322852]
[1761338590291,3.37812664,110890.0,110880.0,0.36322852]
[1761338596451,3.37812664,110890.0,110880.0,0.20506852]
[1761338598350,3.55848555,110890.0,110880.0,0.02469334]
[1761338598553,3.37812664,110890.0,110880.0,0.20506852]
[1761338598760,3.40521879,110890.0,110880.0,0.20506852]
[1761338599564,3.5855777,110890.0,110880.0,0.20506852]
[1761338601305,3.40521879,110890.0,110880.0,0.20506852]
[1761338601515,3.5855777,110890.0,110880.0,0.20506852]
[1761338602762,3.58557127,110890.0,110880.0,0.20506852]
[1761338603812,3.58557127,110890.0,110880.0,0.02469334]
[1761338604050,3.58557127,110890.0,110880.0,0.00037907]
[1761338604247,3.58557127,110890.0,110880.0,0.18075425]
[1761338606926,3.58557127,110890.0,110880.0,0.00037907]
[1761338610321,3.76520929,110890.0,110880.0,0.00037907]
[1761338615052,4.10520929,110890.0,110880.0,0.00037907]
[1761338615752,3.92557127,110890.0,110880.0,0.00037907]
[1761338616148,3.92463124,110890.0,110880.0,0.00037907]
[1761338627436,3.54745106,110890.0,110880.0,0.00037907]
[1761338627782,3.92463124,110890.0,110880.0,0.00037907]
[1761338628006,3.58463124,110890.0,110880.0,0.18075425]
[1761338632675,3.0,110890.0,110880.0,0.20506852]
[1761338633087,3.0,110890.0,110880.0,0.20468945]
[1761338635288,3.0,110890.0,110880.0,0.36284945]
[1761338635508,3.0,110890.0,110880.0,0.33853518]
[1761338635930,3.0,110890.0,110880.0,0.36284945]
[1761338636508,3.0,110890.0,110880.0,0.33853518]
[1761338644072,3.0,110880.0,110870.0,0.23706724]
[1761338644246,3.37718018,110880.0,110870.0,0.39522724]
[1761338644456,0.37718018,110880.0,110870.0,0.39522724]
[1761338645302,3.58463143,110890.0,110880.0,0.18037518]
[1761338646469,3.5575395,110890.0,110880.0,0.18037518]
[1761338646874,3.5575395,110890.0,110880.0,0.18137518]
[1761338649463,3.18035932,110890.0,110880.0,0.18137518]
[1761338649671,3.5575395,110890.0,110880.0,0.18137518]
[1761338650405,3.18035932,110890.0,110880.0,0.18137518]
[1761338650609,3.5575395,110890.0,110880.0,0.18137518]
[1761338650846,3.37718018,110890.0,110880.0,0.18137518]
[1761338651519,3.55753909,110890.0,110880.0,0.18137518]
[1761338658672,3.55753909,110890.0,110880.0,0.20568945]
[1761338660816,3.55753909,110890.0,110880.0,0.001]
[1761338661522,3.55753909,110890.0,110880.0,0.18137518]
[1761338661736,3.55753909,110890.0,110880.0,0.001]
[1761338662096,3.58463303,110890.0,110880.0,0.001]
[1761338662296,3.20745285,110890.0,110880.0,0.001]
[1761338662497,3.58463303,110890.0,110880.0,0.001]
[1761338664803,3.96197921,110890.0,110880.0,0.001]
[1761338672016,0.20745285,110890.0,110880.0,0.18137518]
[1761338672231,0.37726318,110890.0,110880.0,0.18137518]
[1761338676311,3.40469513,110900.0,110890.0,0.18035891]
[1761338676521,3.37760342,110900.0,110890.0,0.18035891]
[1761338677531,3.37860342,110900.0,110890.0,0.18044699]
[1761338680418,3.55894607,110900.0,110890.0,0.18044699]
[1761338684243,3.55860583,110900.0,110890.0,0.18044699]
[1761338684670,3.37826318,110900.0,110890.0,0.18044699]
[1761338687016,3.001,110900.0,110890.0,0.18044699]
[1761338687222,3.37826318,110900.0,110890.0,0.18044699]
[1761338687856,3.001,110900.0,110890.0,0.18044699]
[1761338688059,3.37826318,110900.0,110890.0,0.18044699]
[1761338696467,3.55860583,110900.0,110890.0,0.18044699]
[1761338696684,3.37826318,110900.0,110890.0,0.18044699]
[1761338700913,3.001,110900.0,110890.0,0.18044699]
[1761338701337,0.001,110900.0,110890.0,0.82996345]
[1761338701537,0.001,110900.0,110890.0,0.88941182]
[1761338701755,0.001,110900.0,110890.0,0.92281755]
[1761338702211,0.0002,110910.0,110900.0,0.18034265]
[1761338702416,0.0002,110910.0,110900.0,0.6716593]
[1761338704649,0.0002,110910.0,110900.0,0.6746593]
[1761338705316,3.75336354,110930.0,110920.0,0.18031013]
[1761338705528,3.93368276,110930.0,110920.0,0.18031013]
[1761338706292,3.55641958,110930.0,110920.0,0.18031013]
[1761338706503,3.93368276,110930.0,110920.0,0.18031013]
[1761338706818,3.55641958,110930.0,110920.0,0.18031013]
[1761338706976,3.93368276,110930.0,110920.0,0.18031013]
[1761338707594,3.93468276,110930.0,110920.0,0.18031013]
[1761338708086,3.93570316,110930.0,110910.0,0.33844639]
[1761338708327,3.0,110920.0,110910.0,0.33844639]
[1761338708536,0.55757331,110920.0,110910.0,0.33844639]
[1761338709308,0.37726318,110920.0,110910.0,0.33844639]
[1761338709510,3.55641958,110930.0,110920.0,0.18031013]
[1761338709739,3.93368276,110930.0,110920.0,0.18031013]
[1761338711232,3.0,110920.0,110910.0,0.33844639]
[1761338711429,0.37726318,110920.0,110910.0,0.33844639]
[1761338712443,0.37726318,110920.0,110910.0,0.33944639]
[1761338713623,0.37794351,110920.0,110910.0,0.33944639]
[1761338718497,0.55825364,110920.0,110910.0,0.33944639]
[1761338718993,0.37794351,110920.0,110910.0,0.33944639]
[1761338722316,0.00068033,110920.0,110910.0,0.71670957]
[1761338722559,0.00068033,110920.0,110910.0,0.33944639]
[1761338722757,0.55825364,110920.0,110910.0,0.18132639]
[1761338722963,0.18099046,110920.0,110910.0,0.18132639]
[1761338724407,0.00068033,110920.0,110910.0,0.18132639]
[1761338727783,0.18099046,110920.0,110910.0,0.18132639]
[1761338727984,0.00068033,110920.0,110910.0,0.18132639]
[1761338731309,0.00068033,110920.0,110910.0,0.20556085]
[1761338741704,0.00068033,110920.0,110910.0,0.58247764]
[1761338742537,0.00068033,110920.0,110910.0,0.20556085]
[1761338742753,0.00068033,110920.0,110910.0,0.20555075]
[1761338744370,0.00068033,110920.0,110910.0,0.58246754]
[1761338744969,0.00068033,110920.0,110910.0,0.70464925]
[1761338745604,0.00068033,110920.0,110910.0,0.68042489]
[1761338746105,0.00068033,110920.0,110910.0,0.78668894]
[1761338747416,0.00068033,110920.0,110910.0,0.73814489]
[1761338748084,0.00068033,110920.0,110910.0,0.73914489]
[1761338748264,0.00068033,110920.0,110910.0,0.73814489]
[1761338748500,0.00068033,110920.0,110910.0,1.16560573]
[1761338750295,0.00068033,110920.0,110910.0,0.78868894]
[1761338752392,0.00068033,110920.0,110910.0,1.16560573]
[1761338752742,0.00068033,110920.0,110910.0,1.19268289]
[1761338754230,0.00068033,110920.0,110910.0,1.18968289]
[1761338754622,0.00068033,110920.0,110910.0,1.19468289]
[1761338754832,0.00068033,110920.0,110910.0,1.50232019]
[1761338759675,0.00068033,110920.0,110910.0,0.74848661]
[1761338759903,0.00068033,110920.0,110910.0,1.50232019]
[1761338766336,0.00068033,110920.0,110910.0,1.51142531]
[1761338766545,0.00068033,110920.0,110910.0,1.51503541]
[1761338767220,0.00068033,110920.0,110910.0,1.51403541]
[1761338767423,0.00068033,110920.0,110910.0,1.51003541]
[1761338767854,0.00068033,110920.0,110910.0,1.51603541]
[1761338768062,0.00068033,110920.0,110910.0,1.47749135]
[1761338768271,0.00068033,110920.0,110910.0,1.54243709]
[1761338768476,0.00068033,110920.0,110910.0,1.54443709]
[1761338769785,0.00068033,110920.0,110910.0,1.5344371]
[1761338769992,0.00068033,110920.0,110910.0,1.54443709]
[1761338770989,0.00068033,110920.0,110910.0,1.5344371]
[1761338771284,0.00068033,110920.0,110910.0,1.54443709]
[1761338776577,0.00068033,110920.0,110910.0,1.5344371]
[1761338776788,0.00068033,110920.0,110910.0,1.54443709]
[1761338781478,0.00068033,110920.0,110910.0,1.5344371]
[1761338781680,0.00068033,110920.0,110910.0,1.54443709]
[1761338782747,0.00068033,110920.0,110910.0,1.5344371]
[1761338782919,0.00068033,110920.0,110910.0,1.54443709]
[1761338784755,0.00068033,110920.0,110910.0,1.54400955]
[1761338785952,0.00068033,110920.0,110910.0,1.53400956]
[1761338786161,0.00068033,110920.0,110910.0,1.54400955]
[1761338787184,0.00068033,110920.0,110910.0,1.53400956]
[1761338787468,0.00068033,110920.0,110910.0,1.54400955]